bitfinex-derivatives/quotes_BTCF0:USTF0_20241217
["timestamp","ask_amount","ask_price","bid_price","bid_amount"]
[1734398279667,0.408029,105830.0,105820.0,0.047233]
[1734398280669,0.01981956,105840.0,105830.0,0.047229]
[1734398280975,0.01945271,105840.0,105830.0,0.547229]
[1734398281161,0.00011315,105840.0,105830.0,0.547229]
[1734398282465,0.04733715,105840.0,105830.0,0.047229]
[1734398282858,0.48507524,105840.0,105830.0,0.047229]
[1734398283575,0.40813715,105840.0,105830.0,0.047229]
[1734398284776,0.40863715,105840.0,105830.0,0.047229]
[1734398286773,0.00991719,105840.0,105830.0,0.547229]
[1734398287070,0.00061315,105840.0,105830.0,0.98496709]
[1734398287667,0.00061315,105840.0,105830.0,0.98791789]
[1734398288864,0.42001349,105850.0,105830.0,0.94068889]
[1734398289059,0.42001349,105850.0,105840.0,0.12416209]
[1734398289060,0.00943316,105850.0,105840.0,0.12416209]
[1734398289358,0.0662,105860.0,105850.0,0.04722]
[1734398289559,0.13800519,105870.0,105850.0,0.0501708]
[1734398289560,1.91458242,105870.0,105850.0,0.0501708]
[1734398289765,1.99152051,105870.0,105850.0,0.0501708]
[1734398289974,9.686e-05,105860.0,105850.0,0.0501708]
[1734398290573,9.686e-05,105860.0,105850.0,0.4109708]
[1734398292766,9.686e-05,105860.0,105850.0,0.98790889]
[1734398292987,9.686e-05,105860.0,105850.0,0.98495809]
[1734398293183,9.686e-05,105860.0,105850.0,0.98790815]
[1734398295774,9.686e-05,105860.0,105850.0,0.99728832]
[1734398296275,9.686e-05,105860.0,105850.0,0.9972884]
[1734398297968,9.686e-05,105860.0,105850.0,0.91097014]
[1734398298283,9.686e-05,105860.0,105850.0,0.41097014]
[1734398298890,9.686e-05,105860.0,105850.0,0.48790823]
[1734398299479,9.686e-05,105860.0,105850.0,0.48790811]
[1734398299686,0.00059686,105860.0,105850.0,0.48790811]
[1734398300379,0.00059686,105860.0,105850.0,0.48790814]
[1734398302673,0.00059686,105860.0,105850.0,0.48790804]
[1734398303080,0.00059686,105860.0,105850.0,0.41096995]
[1734398303276,0.15494909,105870.0,105850.0,0.41096995]
[1734398303582,0.07693809,105860.0,105850.0,0.05016995]
[1734398303777,0.48545309,105860.0,105850.0,0.00294995]
[1734398304388,0.48554995,105860.0,105850.0,0.00294995]
[1734398304883,0.40861186,105860.0,105850.0,0.00294995]
[1734398305477,0.36139686,105860.0,105850.0,0.12710804]
[1734398305788,0.00059686,105860.0,105850.0,0.98790804]
[1734398306172,0.00059686,105860.0,105850.0,0.98495809]
[1734398306372,0.00059686,105860.0,105850.0,0.91097011]
[1734398307684,0.00059686,105860.0,105850.0,0.41097011]
[1734398308589,0.48554995,105860.0,105850.0,0.00295011]
[1734398308778,0.48554995,105860.0,105840.0,0.047223]
[1734398309090,0.0326,105850.0,105840.0,0.047223]
[1734398309587,0.07982,105850.0,105840.0,0.047223]
[1734398311081,0.14432,105850.0,105840.0,0.047223]
[1734398311893,0.58205809,105850.0,105830.0,0.408528]
[1734398312177,0.14432,105850.0,105830.0,0.047728]
[1734398312884,0.14432,105850.0,105830.0,0.047228]
[1734398313581,0.50512,105850.0,105830.0,0.047228]
[1734398313781,0.50512,105850.0,105830.0,0.047728]
[1734398315896,0.14432,105850.0,105830.0,0.047728]
[1734398316195,0.50512,105850.0,105830.0,0.047728]
[1734398316580,0.0971,105850.0,105840.0,0.12416209]
[1734398316782,0.41772282,105860.0,105840.0,0.62416209]
[1734398316990,0.41772282,105860.0,105850.0,0.04722]
[1734398317588,0.05692282,105860.0,105850.0,0.04722]
[1734398317783,0.49466091,105860.0,105840.0,0.611323]
[1734398317983,0.49466091,105860.0,105840.0,0.111323]
[1734398318185,0.49466091,105860.0,105840.0,0.07760557]
[1734398318993,0.49466091,105860.0,105840.0,0.047223]
[1734398319587,0.04722,105850.0,105840.0,0.047223]
[1734398319793,0.11102,105850.0,105840.0,0.047223]
[1734398322395,0.0638,105850.0,105840.0,0.047223]
[1734398322693,0.41772282,105860.0,105850.0,0.04722]
[1734398323192,0.05692282,105860.0,105850.0,0.12415809]
[1734398323400,0.05692282,105860.0,105850.0,0.04722]
[1734398325225,0.00970682,105860.0,105850.0,0.04722]
[1734398325402,9.686e-05,105860.0,105850.0,0.98495809]
[1734398325702,9.686e-05,105860.0,105850.0,1.04734066]
[1734398328000,9.686e-05,105860.0,105850.0,1.01695809]
[1734398328696,9.686e-05,105860.0,105850.0,0.94002]
[1734398329793,9.686e-05,105860.0,105850.0,0.57922]
[1734398329997,0.07703495,105860.0,105850.0,0.57922]
[1734398330197,0.07703495,105860.0,105840.0,0.43342016]
[1734398330198,0.48505295,105860.0,105840.0,0.080122]
[1734398330502,0.51835295,105860.0,105840.0,0.047222]
[1734398330895,2.01835295,105860.0,105840.0,0.047222]
[1734398331698,0.15435809,105850.0,105840.0,0.07760457]
[1734398331893,0.10812,105850.0,105840.0,0.07760457]
[1734398332694,0.0609,105850.0,105840.0,0.047222]
[1734398332992,0.44141286,105860.0,105840.0,0.65749324]
[1734398333192,0.04731286,105860.0,105850.0,0.12415809]
[1734398333392,0.04731286,105860.0,105850.0,0.08055315]
[1734398333590,0.40811286,105860.0,105850.0,0.08055315]
[1734398334418,0.40811286,105860.0,105850.0,0.08055304]
[1734398334699,0.04731286,105860.0,105850.0,0.05017047]
[1734398334904,0.04731286,105860.0,105850.0,0.05017039]
[1734398335506,0.40811286,105860.0,105850.0,0.05017039]
[1734398335692,0.04731286,105860.0,105850.0,0.05017039]
[1734398335996,9.686e-05,105860.0,105850.0,0.05017039]
[1734398337604,9.686e-05,105860.0,105850.0,0.18879105]
[1734398337806,9.686e-05,105860.0,105850.0,0.21959105]
[1734398338096,9.686e-05,105860.0,105850.0,0.18920848]
[1734398338907,9.686e-05,105860.0,105850.0,0.55000848]
[1734398339294,9.686e-05,105860.0,105850.0,1.05000848]
[1734398341097,9.686e-05,105860.0,105850.0,0.61227039]
[1734398341396,9.686e-05,105860.0,105850.0,0.11227039]
[1734398342007,9.686e-05,105860.0,105850.0,0.18920848]
[1734398343105,9.686e-05,105860.0,105850.0,0.11227039]
[1734398343609,9.686e-05,105860.0,105850.0,0.18920848]
[1734398344005,9.686e-05,105860.0,105850.0,0.55000848]
[1734398344206,9.686e-05,105860.0,105850.0,0.18920848]
[1734398344999,9.686e-05,105860.0,105850.0,0.11227039]
[1734398346709,0.04731186,105860.0,105850.0,0.11227039]
[1734398347008,0.04731186,105860.0,105850.0,0.10932]
[1734398347407,0.04731186,105860.0,105850.0,0.07852]
[1734398347803,0.04731186,105860.0,105850.0,0.04722]
[1734398347998,0.04731186,105860.0,105850.0,0.05017023]
[1734398347999,0.12415309,105860.0,105850.0,0.05017023]
[1734398348211,0.0316,105860.0,105850.0,0.05017023]
[1734398348414,0.078815,105860.0,105850.0,0.05017023]
[1734398348713,0.0316,105860.0,105850.0,0.12710832]
[1734398348901,0.12144195,105870.0,105860.0,0.047215]
[1734398349102,0.15202788,105870.0,105860.0,0.047215]
[1734398349811,0.15152788,105870.0,105860.0,0.047215]
[1734398350118,0.04271688,105870.0,105860.0,0.07759757]
[1734398350499,0.00971688,105870.0,105860.0,0.07759757]
[1734398350699,0.01021688,105870.0,105860.0,0.07759757]
[1734398350901,0.01021688,105870.0,105860.0,0.047215]
[1734398351713,0.00971688,105870.0,105860.0,0.047215]
[1734398352328,0.00971688,105870.0,105860.0,0.48495309]
[1734398352727,0.01021688,105870.0,105860.0,0.48495309]
[1734398353219,0.00058593,105870.0,105860.0,0.48495309]
[1734398353406,0.00058593,105870.0,105860.0,0.98495309]
[1734398353602,0.08422277,105890.0,105860.0,1.36198265]
[1734398353807,0.08422277,105900.0,105880.0,0.48494409]
[1734398354014,0.08563979,105910.0,105900.0,0.047197]
[1734398354317,0.08422277,105920.0,105910.0,0.047193]
[1734398354518,0.55731877,105940.0,105910.0,0.93773809]
[1734398354707,0.3608,105940.0,105930.0,0.047184]
[1734398354908,0.36088549,105940.0,105930.0,0.047184]
[1734398356506,0.37021666,105940.0,105930.0,0.047184]
[1734398356707,0.41739666,105940.0,105920.0,0.078886]
[1734398357924,0.49433475,105940.0,105920.0,0.047186]
[1734398358421,0.37021666,105940.0,105930.0,0.047184]
[1734398359710,0.37071666,105940.0,105930.0,0.047184]
[1734398360411,0.00991666,105940.0,105930.0,0.047184]
[1734398365121,0.37071666,105940.0,105930.0,0.047184]
[1734398366721,0.49483475,105940.0,105920.0,0.080188]
[1734398368530,0.49483475,105940.0,105920.0,0.047188]
[1734398368531,0.07693809,105930.0,105920.0,0.047188]
[1734398368825,0.49483475,105940.0,105920.0,0.047188]
[1734398369628,0.41789666,105940.0,105920.0,0.047188]
[1734398370030,0.41789666,105940.0,105920.0,0.12412609]
[1734398370224,0.37071666,105940.0,105930.0,0.047184]
[1734398373329,0.00991666,105940.0,105930.0,0.12412209]
[1734398373534,0.00991666,105940.0,105930.0,0.98503976]
[1734398373739,0.00991666,105940.0,105930.0,0.68763976]
[1734398374323,0.00058549,105940.0,105930.0,0.68763976]
[1734398375934,0.00058549,105940.0,105930.0,0.11070167]
[1734398377135,0.00058549,105940.0,105930.0,0.18763976]
[1734398379333,0.00058549,105940.0,105930.0,0.54843976]
[1734398379531,0.00058549,105940.0,105930.0,0.18763976]
[1734398379724,0.00058549,105940.0,105930.0,0.54843976]
[1734398379923,0.00058549,105940.0,105930.0,0.18763976]
[1734398380730,8.549e-05,105940.0,105930.0,0.18763976]
[1734398381325,8.549e-05,105940.0,105930.0,0.62537785]
[1734398381631,8.549e-05,105940.0,105930.0,1.12537785]
[1734398382324,8.549e-05,105940.0,105930.0,1.13422407]
[1734398382639,8.549e-05,105940.0,105930.0,1.12537785]
[1734398383229,8.549e-05,105940.0,105930.0,1.13422407]
[1734398383642,8.549e-05,105940.0,105930.0,1.12537785]
[1734398383836,8.549e-05,105940.0,105930.0,1.42537785]
[1734398385036,8.549e-05,105940.0,105930.0,1.12537785]
[1734398385529,8.549e-05,105940.0,105930.0,1.42537785]
[1734398389923,8.549e-05,105940.0,105930.0,1.12537785]
[1734398391024,8.549e-05,105940.0,105930.0,1.42537785]
[1734398391230,8.549e-05,105940.0,105930.0,1.12537785]
[1734398392238,8.549e-05,105940.0,105930.0,1.04843976]
[1734398392538,8.549e-05,105940.0,105930.0,0.68763976]
[1734398392740,8.549e-05,105940.0,105930.0,1.78617785]
[1734398393046,8.549e-05,105940.0,105930.0,1.48617785]
[1734398399537,0.11752277,105960.0,105930.0,1.61977064]
[1734398399742,0.11752277,105960.0,105950.0,0.48491309]
[1734398400042,0.0333,105960.0,105950.0,0.98491309]
[1734398400553,0.03341721,105960.0,105950.0,0.98491309]
[1734398402834,0.03341721,105960.0,105950.0,0.907975]
[1734398403835,0.03391721,105960.0,105950.0,0.907975]
[1734398406945,0.03391721,105960.0,105950.0,0.91748956]
[1734398407640,0.11813998,105960.0,105950.0,0.547175]
[1734398407833,0.60304907,105960.0,105950.0,0.047175]
[1734398408039,0.60336055,105960.0,105950.0,0.047175]
[1734398408237,2.10336055,105960.0,105950.0,0.047175]
[1734398408437,0.52642246,105960.0,105950.0,0.047175]
[1734398411844,0.53597997,105960.0,105950.0,0.047175]
[1734398414651,0.047175,105950.0,105940.0,0.07756157]
[1734398414946,0.047175,105950.0,105930.0,0.40809967]
[1734398414947,0.04718,105940.0,105930.0,0.40809967]
[1734398415146,0.07768,105940.0,105930.0,0.40809967]
[1734398415339,0.07768,105940.0,105930.0,0.04729967]
[1734398415859,0.07768,105940.0,105930.0,0.04779967]
[1734398416835,0.07768,105940.0,105930.0,0.04729967]
[1734398417743,0.07768,105940.0,105930.0,0.04779967]
[1734398418046,0.07768,105940.0,105930.0,0.00061767]
[1734398418047,0.43848,105940.0,105930.0,0.00061767]
[1734398418752,0.43848,105940.0,105930.0,0.00011767]
[1734398419637,0.07768,105940.0,105930.0,0.00011767]
[1734398419851,0.07768,105940.0,105930.0,0.00061767]
[1734398420146,0.0305,105940.0,105930.0,0.12473976]
[1734398420348,0.0305,105940.0,105930.0,0.62473976]
[1734398420652,0.473776,105950.0,105940.0,0.04718]
[1734398420854,0.473776,105950.0,105940.0,0.12411809]
[1734398421849,0.473776,105950.0,105940.0,0.04718]
[1734398422937,0.12231109,105950.0,105940.0,0.04718]
[1734398424150,0.07513509,105950.0,105940.0,0.48491809]
[1734398424558,0.04223509,105950.0,105940.0,0.48491809]
[1734398424738,0.00933509,105950.0,105940.0,0.48491809]
[1734398424946,0.47328921,105960.0,105940.0,0.07693809]
[1734398425146,0.47328921,105960.0,105950.0,0.047175]
[1734398425955,0.48293396,105960.0,105950.0,0.047175]
[1734398426553,0.56746821,105960.0,105950.0,0.047175]
[1734398426852,0.48243396,105960.0,105950.0,0.047175]
[1734398427440,0.047176,105950.0,105940.0,0.047179]
[1734398427654,0.440076,105950.0,105940.0,0.047179]
[1734398428048,0.440076,105950.0,105930.0,0.11100067]
[1734398430554,0.40798,105940.0,105930.0,0.04780067]
[1734398430758,0.07878,105940.0,105930.0,0.04780067]
[1734398436153,0.07878,105940.0,105930.0,0.00061767]
[1734398436363,0.11008,105940.0,105930.0,0.00061767]
[1734398437463,0.11008,105940.0,105930.0,0.04780167]
[1734398438547,0.52461954,105950.0,105940.0,0.04718]
[1734398438749,0.49251954,105950.0,105940.0,0.12411809]
[1734398439156,0.49251954,105950.0,105940.0,0.04718]
[1734398439557,0.14095007,105950.0,105940.0,0.04718]
[1734398440058,0.05640653,105950.0,105940.0,0.04718]
[1734398440562,0.14095007,105950.0,105940.0,0.04718]
[1734398441650,0.17071216,105950.0,105930.0,0.50340067]
[1734398441957,0.04718,105940.0,105930.0,0.07920067]
[1734398442262,0.04718,105940.0,105930.0,0.04780067]
[1734398442263,0.48491809,105940.0,105930.0,0.04780067]
[1734398442564,0.54881809,105940.0,105930.0,0.04780067]
[1734398442857,0.55642354,105940.0,105930.0,0.04730067]
[1734398443658,0.63336163,105940.0,105930.0,0.04730067]
[1734398444058,0.63336163,105940.0,105930.0,0.00011767]
[1734398444454,0.74565763,105940.0,105930.0,0.00011767]
[1734398446760,0.66871954,105940.0,105930.0,0.00011767]
[1734398446977,0.55642354,105940.0,105930.0,0.00011767]
[1734398448764,0.11108,105940.0,105930.0,0.04730167]
[1734398448954,0.64694607,105950.0,105930.0,0.12423976]
[1734398449154,0.53465007,105950.0,105930.0,0.15693976]
[1734398451356,0.53465007,105950.0,105930.0,0.08000167]
[1734398452464,0.56441216,105950.0,105930.0,0.08000167]
[1734398452660,0.04718,105940.0,105930.0,0.08000167]
[1734398452858,0.04718,105940.0,105930.0,0.04730167]
[1734398453058,0.40798,105940.0,105930.0,0.04730167]
[1734398453262,0.40798,105940.0,105930.0,0.00011767]
[1734398453467,0.51801809,105940.0,105930.0,0.00011767]
[1734398453664,0.44108,105940.0,105930.0,0.00011767]
[1734398455755,0.08028,105940.0,105930.0,0.00011767]
[1734398455958,0.04718,105940.0,105930.0,0.12423976]
[1734398458862,0.04718,105940.0,105930.0,0.04730167]
[1734398459367,0.17435007,105950.0,105930.0,0.12423976]
[1734398459576,0.17435007,105950.0,105930.0,1.04683976]
[1734398460261,0.53515007,105950.0,105930.0,0.68603976]
[1734398460462,0.04718,105940.0,105930.0,0.10910167]
[1734398463276,0.04718,105940.0,105930.0,0.07860167]
[1734398464478,0.49252354,105940.0,105930.0,0.07860167]
[1734398464971,0.13172354,105940.0,105930.0,0.07860167]
[1734398465273,0.40798,105940.0,105930.0,0.07860167]
[1734398466174,0.64744607,105950.0,105930.0,0.15553976]
[1734398466374,0.53515007,105950.0,105930.0,0.15553976]
[1734398466874,0.53515007,105950.0,105930.0,0.51633976]
[1734398467064,0.53515007,105950.0,105930.0,0.15553976]
[1734398468578,0.53515007,105950.0,105930.0,0.51633976]
[1734398468879,0.53515007,105950.0,105930.0,0.15553976]
[1734398469073,0.64744607,105950.0,105930.0,0.15553976]
[1734398469269,0.53515007,105950.0,105930.0,0.15553976]
[1734398469470,0.50225007,105950.0,105940.0,0.12411809]
[1734398469670,0.50225007,105950.0,105940.0,0.15411809]
[1734398469978,0.44584354,105950.0,105940.0,0.65411809]
[1734398470272,0.08504354,105950.0,105940.0,1.04711809]
[1734398470483,0.0005,105950.0,105940.0,1.04711809]
[1734398473970,0.00011721,105960.0,105950.0,0.047175]
[1734398474169,0.00011721,105960.0,105950.0,0.51751309]
[1734398474982,0.00061721,105960.0,105950.0,0.51751309]
[1734398475967,0.00011721,105960.0,105950.0,0.51751309]
[1734398476881,0.00061721,105960.0,105950.0,0.51751309]
[1734398477881,0.00011721,105960.0,105950.0,0.51751309]
[1734398478577,0.00011721,105960.0,105950.0,0.59445118]
[1734398478784,0.00141594,105980.0,105970.0,0.047166]
[1734398478970,0.14854354,105990.0,105980.0,0.047162]
[1734398479169,0.14854354,105990.0,105980.0,0.62410009]
[1734398479476,0.1,106000.0,105990.0,0.047157]
[1734398479675,0.1,106000.0,105990.0,0.56193752]
[1734398479875,7.238e-05,106010.0,106000.0,0.047153]
[1734398480074,7.238e-05,106010.0,106000.0,0.54969109]
[1734398480376,7.238e-05,106010.0,106000.0,0.472753]
[1734398480574,7.238e-05,106010.0,106000.0,0.54969109]
[1734398482275,7.238e-05,106010.0,106000.0,0.55891421]
[1734398490695,7.238e-05,106010.0,106000.0,0.407953]
[1734398491282,7.238e-05,106010.0,106000.0,0.48489109]
[1734398492087,7.238e-05,106010.0,106000.0,0.12409109]
[1734398492279,7.238e-05,106010.0,106000.0,0.48489109]
[1734398492791,7.238e-05,106010.0,106000.0,0.12409109]
[1734398494381,0.047153,106000.0,105990.0,0.04726134]
[1734398494690,0.079153,106000.0,105990.0,0.04726134]
[1734398494994,0.109753,106000.0,105990.0,0.04726134]
[1734398497003,0.470553,106000.0,105990.0,0.04726134]
[1734398498391,0.0626,106000.0,105990.0,0.12419943]
[1734398499685,0.05707835,106010.0,105990.0,0.07704243]
[1734398499898,0.08737835,106010.0,106000.0,0.12409109]
[1734398500089,0.08737835,106010.0,106000.0,0.047153]
[1734398500396,0.44817835,106010.0,106000.0,0.047153]
[1734398500785,0.53272189,106010.0,106000.0,0.047153]
[1734398501186,0.08737835,106010.0,106000.0,0.047153]
[1734398501389,0.12477189,106010.0,106000.0,0.12409109]
[1734398501590,0.00057238,106010.0,106000.0,0.98489109]
[1734398501799,0.00057238,106010.0,106000.0,1.04899109]
[1734398503893,7.238e-05,106010.0,106000.0,1.04899109]
[1734398506397,0.08461592,106010.0,106000.0,1.05830384]
[1734398508502,0.19691192,106010.0,106000.0,1.05830384]
[1734398509791,0.11236838,106010.0,106000.0,1.05830384]
[1734398510886,0.19698193,106010.0,106000.0,1.05830384]
[1734398511408,0.19698223,106010.0,106000.0,1.05830384]
[1734398512200,7.238e-05,106010.0,106000.0,1.09753263]
[1734398513895,7.238e-05,106010.0,106000.0,1.08868641]
[1734398514307,7.238e-05,106010.0,106000.0,1.05830384]
[1734398515602,7.238e-05,106010.0,106000.0,0.440353]
[1734398515898,0.08468623,106010.0,106000.0,0.440353]
[1734398516098,0.13183423,106010.0,106000.0,0.407953]
[1734398516298,0.16283423,106010.0,106000.0,0.407953]
[1734398517507,0.52363423,106010.0,106000.0,0.047153]
[1734398517704,0.19051638,106010.0,106000.0,0.047153]
[1734398517899,0.047153,106000.0,105990.0,0.04726034]
[1734398518096,0.13168553,106000.0,105990.0,0.04726034]
[1734398520003,0.49248553,106000.0,105990.0,0.04726034]
[1734398520208,0.60478153,106000.0,105990.0,0.04726034]
[1734398522400,0.60478153,106000.0,105990.0,0.00010434]
[1734398522598,0.68171962,106000.0,105990.0,0.00010434]
[1734398523309,0.60478153,106000.0,105990.0,0.00010434]
[1734398524709,0.50203911,106000.0,105990.0,0.00010434]
[1734398528519,0.41750658,106000.0,105990.0,0.00010434]
[1734398528713,0.41750658,106000.0,105990.0,0.04726134]
[1734398530227,0.41750658,106000.0,105990.0,0.12419943]
[1734398530417,0.41750658,106000.0,105990.0,0.62419943]
[1734398530418,0.3608,106000.0,105990.0,0.62419943]
[1734398530623,0.3608,106000.0,105990.0,0.12419943]
[1734398530921,0.3608,106000.0,105990.0,0.15609943]
[1734398531620,0.46932238,106010.0,106000.0,0.047153]
[1734398532019,0.10852238,106010.0,106000.0,0.047153]
[1734398532327,0.1180804,106010.0,106000.0,0.047153]
[1734398532828,0.047153,106000.0,105990.0,0.07916034]
[1734398533127,0.047153,106000.0,105990.0,0.04726034]
[1734398533128,0.407953,106000.0,105990.0,0.04726034]
[1734398533524,0.047153,106000.0,105990.0,0.04726034]
[1734398533719,0.407953,106000.0,105990.0,0.04726034]
[1734398534027,0.047153,106000.0,105990.0,0.04726034]
[1734398535224,0.4317304,106010.0,105990.0,0.04726034]
[1734398535414,0.4788794,106010.0,106000.0,0.047153]
[1734398536923,0.4788804,106010.0,106000.0,0.047153]
[1734398538422,0.4485804,106010.0,106000.0,0.047153]
[1734398538617,0.0877804,106010.0,106000.0,0.047153]
[1734398539319,0.4485804,106010.0,106000.0,0.047153]
[1734398540027,1.9485804,106010.0,106000.0,0.047153]
[1734398540424,0.4485804,106010.0,106000.0,0.047153]
[1734398541833,0.0877804,106010.0,106000.0,0.047153]
[1734398542032,0.4485804,106010.0,106000.0,0.047153]
[1734398542329,0.0877804,106010.0,106000.0,0.12409109]
[1734398542530,0.0096304,106010.0,106000.0,0.12409109]
[1734398542723,0.0096304,106010.0,106000.0,0.15489109]
[1734398543337,7.238e-05,106010.0,106000.0,1.01569109]
[1734398544829,7.238e-05,106010.0,106000.0,1.04607366]
[1734398545335,7.238e-05,106010.0,106000.0,1.01569109]
[1734398547938,0.047153,106000.0,105990.0,0.14044391]
[1734398548243,0.047153,106000.0,105990.0,0.00010434]
[1734398548627,0.407953,106000.0,105990.0,0.00010434]
[1734398548835,0.047153,106000.0,105990.0,0.00010434]
[1734398549143,0.407953,106000.0,105990.0,0.00010434]
[1734398550534,0.48489109,106000.0,105990.0,0.00010434]
[1734398550841,0.56942362,106000.0,105990.0,0.00010434]
[1734398551228,0.68171962,106000.0,105990.0,0.00010434]
[1734398551440,2.18171962,106000.0,105990.0,0.00010434]
[1734398552233,2.06942362,106000.0,105990.0,0.00010434]
[1734398553038,2.07877913,106000.0,105990.0,0.00010434]
[1734398554240,0.57877913,106000.0,105990.0,0.00010434]
[1734398557036,0.41730851,106000.0,105990.0,0.00010434]
[1734398557234,0.50184104,106000.0,105990.0,0.00010434]
[1734398557430,0.41730851,106000.0,105990.0,0.00010434]
[1734398557932,0.50184104,106000.0,105990.0,0.00010434]
[1734398558447,0.57877913,106000.0,105990.0,0.00010434]
[1734398560540,0.4942466,106000.0,105990.0,0.00010434]
[1734398560850,0.57877913,106000.0,105990.0,0.00010434]
[1734398561443,2.07877913,106000.0,105990.0,0.00010434]
[1734398562052,0.57877913,106000.0,105990.0,0.00010434]
[1734398567648,0.047165,105980.0,105960.0,0.95113319]
[1734398568660,0.047165,105980.0,105970.0,8.512e-05]
[1734398570157,0.047165,105980.0,105970.0,0.04725112]
[1734398571056,0.047165,105980.0,105970.0,0.04775112]
[1734398572057,0.047165,105980.0,105970.0,0.04725112]
[1734398573161,0.047165,105980.0,105970.0,0.04775112]
[1734398574046,0.047165,105980.0,105970.0,0.04725112]
[1734398574449,0.05650977,105980.0,105970.0,0.04725112]
[1734398575157,0.05650977,105980.0,105970.0,0.04775112]
[1734398575455,0.41730977,105980.0,105970.0,0.00058512]
[1734398575658,0.49424786,105980.0,105970.0,0.00058512]
[1734398576058,0.49424786,105980.0,105970.0,8.512e-05]
[1734398576661,0.41730977,105980.0,105970.0,8.512e-05]
[1734398576957,0.05650977,105980.0,105970.0,8.512e-05]
[1734398577154,0.05650977,105980.0,105970.0,0.00058512]
[1734398578145,0.05650977,105980.0,105970.0,8.512e-05]
[1734398578560,0.05650977,105980.0,105970.0,0.15728921]
[1734398578763,0.05650977,105980.0,105970.0,0.11305112]
[1734398579149,0.05650977,105980.0,105970.0,0.11355112]
[1734398581155,0.05650977,105980.0,105970.0,0.11305112]
[1734398581358,0.5018423,105980.0,105970.0,0.11305112]
[1734398581549,0.1410423,105980.0,105970.0,0.11305112]
[1734398581762,0.5018423,105980.0,105970.0,0.11305112]
[1734398582561,0.57878039,105980.0,105970.0,0.04725112]
[1734398582752,0.57878039,105980.0,105970.0,8.512e-05]
[1734398584166,0.5018423,105980.0,105970.0,8.512e-05]
[1734398587461,0.0938773,105980.0,105970.0,0.12418921]
[1734398587662,0.00934477,105980.0,105970.0,0.65698921]
[1734398587859,0.55749253,105990.0,105970.0,0.68838921]
[1734398588053,0.55749253,105990.0,105970.0,0.61145112]
[1734398588261,0.55749253,105990.0,105970.0,0.97225112]
[1734398588652,0.047162,105980.0,105970.0,0.11145112]
[1734398590066,0.09762416,105980.0,105970.0,0.11145112]
[1734398590764,0.047162,105980.0,105970.0,0.11145112]
[1734398591663,0.047162,105980.0,105970.0,0.16191328]
[1734398592162,0.72951761,105990.0,105970.0,0.52271328]
[1734398592470,0.61722161,105990.0,105970.0,1.02271328]
[1734398592658,0.61722161,105990.0,105970.0,0.66191328]
[1734398592870,0.36871761,105990.0,105970.0,0.66191328]
[1734398593167,0.72951761,105990.0,105970.0,0.66191328]
[1734398593465,0.61722161,105990.0,105970.0,1.05309585]
[1734398594268,0.72951761,105990.0,105970.0,1.05309585]
[1734398594860,0.72951761,105990.0,105970.0,1.00592985]
[1734398595067,0.72951761,105990.0,105980.0,0.047162]
[1734398596064,0.67905545,105990.0,105980.0,0.047162]
[1734398596372,0.09380145,105990.0,105980.0,0.09762416]
[1734398596565,0.09380145,105990.0,105980.0,0.18028632]
[1734398596864,0.09380145,105990.0,105980.0,0.12982416]
[1734398597169,0.00926892,105990.0,105980.0,0.49062416]
[1734398597357,0.60478253,106000.0,105980.0,0.49062416]
[1734398597558,0.49248653,106000.0,105990.0,0.047157]
[1734398597859,0.60478253,106000.0,105990.0,0.047157]
[1734398598054,0.49298653,106000.0,105990.0,0.047157]
[1734398598455,0.5025036,106000.0,105990.0,0.047157]
[1734398598869,0.5025036,106000.0,105990.0,0.09761916]
[1734398599171,0.5020036,106000.0,105990.0,0.09761916]
[1734398599768,0.5020036,106000.0,105990.0,0.047157]
[1734398599970,0.5020036,106000.0,105980.0,0.08266216]
[1734398600171,0.55296576,106000.0,105980.0,0.12982316]
[1734398601058,0.55246576,106000.0,105980.0,0.12982316]
[1734398602073,0.55296576,106000.0,105980.0,0.12982316]
[1734398602275,0.5025036,106000.0,105980.0,0.12982316]
[1734398603162,0.5020036,106000.0,105980.0,0.12982316]
[1734398604078,0.0945496,106000.0,105990.0,0.64808132]
[1734398604370,0.01001707,106000.0,105990.0,1.00888132]
[1734398604565,0.01001707,106000.0,105990.0,0.65901916]
[1734398604871,0.10763223,106000.0,105990.0,0.547157]
[1734398605171,0.05667007,106000.0,105990.0,0.09761916]
[1734398605375,0.00951707,106000.0,105990.0,0.09761916]
[1734398605671,0.55637152,106010.0,105990.0,0.09761916]
[1734398605867,0.66866752,106010.0,105990.0,0.09761916]
[1734398606073,0.0005,106000.0,105990.0,0.09761916]
[1734398606275,0.0005,106000.0,105990.0,0.09868569]
[1734398608075,0.61605645,106010.0,105990.0,0.09868569]
[1734398608277,0.61605645,106010.0,106000.0,0.00106653]
[1734398609167,0.61655645,106010.0,106000.0,0.00106653]
[1734398610176,0.61605645,106010.0,106000.0,0.00106653]
[1734398610567,0.56559429,106010.0,106000.0,0.00106653]
[1734398611075,0.56609429,106010.0,106000.0,0.00106653]
[1734398612086,0.56559429,106010.0,106000.0,0.00106653]
[1734398613063,0.56609429,106010.0,106000.0,0.00106653]
[1734398614076,0.56559429,106010.0,106000.0,0.00106653]
[1734398615178,0.56609429,106010.0,106000.0,0.00106653]
[1734398615880,0.61655645,106010.0,106000.0,0.00106653]
[1734398616081,0.72885245,106010.0,106000.0,0.00106653]
[1734398616281,0.047162,105990.0,105970.0,0.93865012]
[1734398616504,0.45842316,105990.0,105970.0,0.48911228]
[1734398616684,0.407961,105990.0,105970.0,0.48911228]
[1734398616881,0.407961,105990.0,105980.0,0.05046216]
[1734398617278,0.407961,105990.0,105970.0,0.48861228]
[1734398618187,0.407961,105990.0,105980.0,0.05046216]
[1734398618485,0.407961,105990.0,105980.0,0.09762416]
[1734398619788,0.047161,105990.0,105980.0,0.09762416]
[1734398619992,0.047161,105990.0,105980.0,0.12792416]
[1734398621879,0.407961,105990.0,105980.0,0.047162]
[1734398622179,0.441061,105990.0,105980.0,0.047162]
[1734398622677,0.441061,105990.0,105980.0,0.09762416]
[1734398623596,0.45058118,105990.0,105980.0,0.09762416]
[1734398623974,0.53522006,105990.0,105980.0,0.09762416]
[1734398624178,0.53852122,105990.0,105970.0,0.06148512]
[1734398624378,0.53852122,105990.0,105970.0,0.15911228]
[1734398624379,0.047162,105980.0,105970.0,0.15911228]
[1734398624886,0.61578022,105990.0,105970.0,0.15911228]
[1734398625084,0.56531806,105990.0,105980.0,0.05046216]
[1734398626283,0.20451806,105990.0,105980.0,0.09762416]
[1734398626487,0.11987918,105990.0,105980.0,0.09762416]
[1734398627689,0.00952018,105990.0,105980.0,0.64808632]
[1734398627879,0.52389288,106000.0,105980.0,1.03888632]
[1734398628085,0.407954,106000.0,105990.0,0.09761916]
[1734398628285,0.407954,106000.0,105990.0,0.16080173]
[1734398628593,0.407954,106000.0,105990.0,0.13041916]
[1734398628792,0.047154,106000.0,105990.0,0.13041916]
[1734398628979,0.047154,106000.0,105990.0,0.16080173]